fUSD/lending_fUSD_20240608
["ID","MTS","AMOUNT","RATE_DAILY","PERIOD"]
[328818547,1717835448107,-3384.42,0.000274,2]
[328818548,1717835448116,-4070.05,0.000274,2]
[328818549,1717835448125,-151.0,0.000274,7]
[328818550,1717835448135,-151.0,0.000274,7]
[328818551,1717835448145,-151.0,0.000274,7]
[328818552,1717835448155,-151.0,0.000274,7]
[328818553,1717835448164,-151.0,0.000274,7]
[328818554,1717835448174,-160.754286,0.000274,7]
[328818555,1717835448183,-151.0,0.000274,7]
[328818556,1717835448192,-1004.38707222,0.000274,2]
[328818557,1717835448202,-474.89,0.000274,2]
[328818558,1717835448211,-474.89,0.000274,2]
[328818559,1717835448221,-474.89,0.000274,2]
[328818560,1717835448231,-474.89,0.000274,2]
[328818561,1717835448241,-474.89,0.000274,2]
[328818562,1717835448251,-474.89,0.000274,2]
[328818563,1717835448260,-474.89,0.000274,2]
[328818564,1717835448270,-474.89,0.000274,2]
[328818565,1717835448281,-474.89,0.000274,2]
[328818566,1717835448291,-474.89,0.000274,2]
[328818567,1717835448302,-154.32068212,0.00027408,2]
[328818568,1717835448313,-273.735864,0.000275,5]
[328818569,1717835448322,-155.00128118,0.0002752,2]
[328818570,1717835448332,-150.0,0.00027534,2]
[328818571,1717835448342,-150.0,0.00027534,2]
[328818572,1717835448351,-150.0,0.00027534,2]
[328818573,1717835448361,-150.0,0.00027534,2]
[328818574,1717835448371,-150.0,0.00027534,2]
[328818575,1717835448380,-150.0,0.00027534,2]
[328818576,1717835448391,-150.0,0.00027534,2]
[328818577,1717835448402,-150.0,0.00027534,2]
[328818578,1717835448412,-353.29,0.00027534,2]
[328818579,1717835448423,-164.14,0.00027534,2]
[328818580,1717835448433,-150.0,0.00027534,2]
[328818581,1717835448443,-150.0,0.00027534,2]
[328818582,1717835448453,-422.49,0.00027534,2]
[328818583,1717835448463,-1080.61,0.00027534,2]
[328818584,1717835448473,-422.49,0.00027534,2]
[328818585,1717835448483,-150.0,0.00027534,2]
[328818586,1717835448492,-164.14,0.00027534,2]
[328818587,1717835448502,-353.29,0.00027534,2]
[328818588,1717835448512,-150.0,0.00027534,2]
[328818589,1717835448522,-150.94,0.00027534,2]
[328818590,1717835448531,-150.0,0.00027534,2]
[328818591,1717835448540,-150.0,0.00027534,2]
[328818592,1717835448550,-150.0,0.00027534,2]
[328818593,1717835448560,-150.0,0.00027534,2]
[328818594,1717835448570,-353.29,0.00027534,2]
[328818595,1717835448580,-164.14,0.00027534,2]
[328818596,1717835448589,-150.0,0.00027534,2]
[328818597,1717835448599,-150.0,0.00027534,2]
[328818598,1717835448608,-153.23,0.00027534,2]
[328818599,1717835448618,-422.49,0.00027534,2]
[328818600,1717835448628,-422.49,0.00027534,2]
[328818601,1717835448638,-353.29,0.00027534,2]
[328818602,1717835448647,-315.04,0.00027534,2]
[328818603,1717835448657,-150.0,0.00027534,2]
[328818604,1717835448666,-307.23,0.00027534,2]
[328818605,1717835448676,-150.0,0.00027534,2]
[328818606,1717835448686,-422.49,0.00027534,2]
[328818607,1717835448695,-295.69,0.00027534,2]
[328818608,1717835448705,-602.57,0.00027534,2]
[328818609,1717835448714,-440.38,0.00027534,2]
[328818610,1717835448724,-951.29,0.00027535,2]
[328818611,1717835448733,-152.7171191,0.00027594,2]
[328818612,1717835448743,-156.21107899,0.00027621,2]
[328818613,1717835448752,-357.305951,0.00027665,2]
[328818614,1717835448764,-265.644203,0.00027665,2]
[328818615,1717835448774,-211.999854,0.00027665,2]
[328818616,1717835448784,-427.099077,0.00027665,2]
[328818617,1717835448793,-208.391639,0.00027665,2]
[328818618,1717835448803,-263.17055,0.00027665,2]
[328818619,1717835448812,-357.274075,0.00027665,2]
[328818620,1717835448822,-184.2199,0.00027665,2]
[328818621,1717835448831,-159.828432,0.00027665,2]
[328818622,1717835448840,-173.896174,0.00027665,2]
[328818623,1717835448850,-992.996881,0.00027665,2]
[328818624,1717835448859,-1596.397712,0.00027665,2]
[328818625,1717835448868,-191.362027,0.00027665,2]
[328818626,1717835448878,-1429.0963,0.00027665,2]
[328818627,1717835448887,-183.720463,0.00027665,2]
[328818628,1717835448897,-187.647935,0.00027665,2]
[328818629,1717835448906,-3666.797236,0.00027665,2]
[328818630,1717835448916,-171.448464,0.00027665,2]
[328818631,1717835449012,-234.443871,0.00027665,2]
[328818632,1717835449022,-150.662243,0.00027665,2]
[328818633,1717835449032,-4076.256233,0.00027665,2]
[328818634,1717835449042,-5151.626452,0.00027665,2]
[328818635,1717835449051,-185.480065,0.00027665,2]
[328818636,1717835449064,-180.714101,0.00027665,2]
[328818637,1717835449074,-235.610829,0.00027665,2]
[328818638,1717835449084,-14570.595756,0.00027665,2]
[328818639,1717835449094,-16305.024929,0.00027665,2]
[328818640,1717835449104,-282.146997,0.00027665,2]
[328818641,1717835449114,-171.738027,0.00027665,2]
[328818642,1717835449123,-7727.439677,0.00027665,2]
[328818643,1717835449132,-180.351858,0.00027665,2]
[328818644,1717835449144,-182.893285,0.00027665,2]
[328818645,1717835449155,-202.380611,0.00027665,2]
[328818646,1717835449164,-153.526593,0.00027665,7]
[328818647,1717835449174,-151.0,0.00027665,7]
[328818648,1717835449185,-151.0,0.00027665,7]
[328818649,1717835449195,-151.0,0.00027665,7]
[328818650,1717835449206,-151.0,0.00027665,7]
[328818651,1717835449217,-151.0,0.00027665,7]
[328818652,1717835449226,-258.707119,0.00027665,7]
[328818653,1717835449236,-151.0,0.00027665,7]
[328818654,1717835449246,-151.0,0.00027665,7]
[328818655,1717835449257,-258.707119,0.00027665,7]
[328818656,1717835449267,-151.0,0.00027665,7]
[328818657,1717835449278,-151.0,0.00027665,7]
[328818658,1717835449288,-150.0,0.00027671,2]
[328818659,1717835449299,-153.88191173,0.00027755,2]
[328818660,1717835449309,-154.3630478,0.00027807,2]
[328818661,1717835449319,-150.0,0.00027808,2]
[328818662,1717835449330,-156.21107899,0.00027813,2]
[328818663,1717835449339,-151.0,0.00027876,4]
[328818664,1717835449348,-230.234029,0.00027887,7]
[328818665,1717835449358,-151.0,0.00027887,7]
[328818666,1717835449368,-230.234029,0.00027887,7]
[328818667,1717835449377,-151.0,0.00027887,7]
[328818668,1717835449388,-151.0,0.00027887,7]
[328818669,1717835449397,-151.0,0.00027887,7]
[328818670,1717835449406,-151.0,0.00027887,7]
[328818671,1717835449415,-151.0,0.00027887,7]
[328818672,1717835449424,-446.0,0.00027887,2]
[328818673,1717835449434,-808.0,0.00027887,2]
[328818674,1717835449444,-165.0,0.00027887,2]
[328818675,1717835449453,-2405.0,0.00027887,2]
[328818676,1717835449463,-150.0,0.00027887,2]
[328818677,1717835449472,-1304.0,0.00027887,2]
[328818678,1717835449482,-3174.0,0.00027887,2]
[328818679,1717835449491,-546.0,0.00027887,2]
[328818680,1717835449501,-1977.0,0.00027887,2]
[328818681,1717835449510,-978.0,0.00027887,2]
[328818682,1717835449520,-5781.0,0.00027887,2]
[328818683,1717835449529,-5153.0,0.00027887,2]
[328818684,1717835449539,-155.00128118,0.0002792,2]
[328818685,1717835449550,-217.5286322,0.00027929,2]
[328818686,1717835449559,-152.7171191,0.00027931,2]
[328818687,1717835449568,-166.65534303,0.00027942,2]
[328818688,1717835449578,-150.0,0.00027945,2]
[328818689,1717835449587,-7166.65626237,0.00028,2]
[328818690,1717835449597,-3344.76373864,0.00028,2]
[328818691,1717835449606,-472.64083293,0.00028,2]
[328818692,1717835449623,-24262.40868532,0.00028,2]
[328818693,1717835449644,-485.24817371,0.00028,2]
[328818694,1717835449662,-2100.0,0.00028,2]
[328818695,1717835449682,-151.0,0.00028,7]
[328818696,1717835449704,-151.0,0.00028,7]
[328818697,1717835449722,-200.0,0.00028,2]
[328818698,1717835449741,-200.0,0.00028,30]
[328818699,1717835449757,-357.305951,0.0002801,2]
[328818700,1717835449773,-265.644203,0.0002801,2]
[328818701,1717835449791,-427.099077,0.0002801,2]
[328818702,1717835449813,-208.391639,0.0002801,2]
[328818703,1717835449826,-263.17055,0.0002801,2]
[328818704,1717835449842,-357.274075,0.0002801,2]
[328818705,1717835449858,-992.996881,0.0002801,2]
[328818706,1717835449876,-1596.397712,0.0002801,2]
[328818707,1717835449889,-1429.0963,0.0002801,2]
[328818708,1717835449903,-3666.797236,0.0002801,2]
[328818709,1717835449918,-234.443871,0.0002801,2]
[328818710,1717835449932,-150.662243,0.0002801,2]
[328818711,1717835449947,-4076.256233,0.0002801,2]
[328818712,1717835449963,-5151.626452,0.0002801,2]
[328818713,1717835449979,-235.610829,0.0002801,2]
[328818714,1717835449993,-14570.595756,0.0002801,2]
[328818715,1717835450008,-16305.024929,0.0002801,2]
[328818716,1717835450023,-282.146997,0.0002801,2]
[328818717,1717835450037,-171.738027,0.0002801,2]
[328818718,1717835450052,-7727.439677,0.0002801,2]
[328818719,1717835450069,-152.36914946,0.00028071,2]
[328818720,1717835450084,-150.0,0.00028082,2]
[328818721,1717835450099,-185.480065,0.00028126,2]
[328818722,1717835450113,-152.7171191,0.00028161,2]
[328818723,1717835450129,-3384.42,0.000282,2]
[328818724,1717835450145,-4070.05,0.000282,2]
[328818725,1717835450160,-151.0,0.000282,7]
[328818726,1717835450176,-151.0,0.000282,7]
[328818727,1717835450192,-151.0,0.000282,7]
[328818728,1717835450208,-150.0,0.00028219,2]
[328818729,1717835450224,-16893.23923572,0.00028233,2]
[328818730,1717835450240,-179.45614955,0.00028275,2]
[328818731,1717835450255,-156.21107899,0.00028288,2]
[328818732,1717835450270,-179.45614955,0.00028323,2]
[328818733,1717835450285,-150.0,0.00028356,2]
[328818734,1717835450302,-159.828432,0.00028356,2]
[328818735,1717835450317,-180.714101,0.00028356,2]
[328818736,1717835450333,-357.305951,0.00028356,2]
[328818737,1717835450348,-265.644203,0.00028356,2]
[328818738,1717835450364,-427.099077,0.00028356,2]
[328818739,1717835450379,-208.391639,0.00028356,2]
[328818740,1717835450396,-263.17055,0.00028356,2]
[328818741,1717835450412,-357.274075,0.00028356,2]
[328818742,1717835450426,-992.996881,0.00028356,2]
[328818743,1717835450440,-1596.397712,0.00028356,2]
[328818744,1717835450455,-1429.0963,0.00028356,2]
[328818745,1717835450470,-3666.797236,0.00028356,2]
[328818746,1717835450484,-234.443871,0.00028356,2]
[328818747,1717835450499,-150.662243,0.00028356,2]
[328818748,1717835450513,-4076.256233,0.00028356,2]
[328818749,1717835450523,-5151.626452,0.00028356,2]
[328818750,1717835450532,-235.610829,0.00028356,2]
[328818751,1717835450542,-14570.595756,0.00028356,2]
[328818752,1717835450551,-16305.024929,0.00028356,2]
[328818753,1717835450561,-282.146997,0.00028356,2]
[328818754,1717835450726,-171.738027,0.00028356,2]
[328818755,1717835450750,-7727.439677,0.00028356,2]
[328818756,1717835450760,-179.45614955,0.0002838,2]
[328818757,1717835450770,-155.71744516,0.00028398,2]
[328818758,1717835450779,-694.92774988,0.000284,2]
[328818759,1717835450788,-3034.37153192,0.000284,2]
[328818760,1717835450798,-153.88191173,0.00028439,2]
[328818761,1717835450808,-151.0,0.00028445,2]
[328818762,1717835450817,-17383.89979385,0.00028445,2]
[328818763,1717835450827,-150.0,0.00028493,2]
[328818764,1717835450837,-780.50617977,0.000285,3]
[328818765,1717835450847,-156.21107899,0.00028531,2]
[328818766,1717835450856,-179.45614955,0.00028533,2]
[328818767,1717835450865,-185.480065,0.00028587,2]
[328818768,1717835450875,-153.88191173,0.00028624,2]
[328818769,1717835450884,-150.0,0.0002863,2]
[328818770,1717835450894,-357.305951,0.00028702,2]
[328818771,1717835450904,-265.644203,0.00028702,2]
[328818772,1717835450914,-427.099077,0.00028702,2]
[328818773,1717835450923,-208.391639,0.00028702,2]
[328818774,1717835450932,-263.17055,0.00028702,2]
[328818775,1717835450942,-357.274075,0.00028702,2]
[328818776,1717835450952,-992.996881,0.00028702,2]
[328818777,1717835450961,-1596.397712,0.00028702,2]
[328818778,1717835450971,-1429.0963,0.00028702,2]
[328818779,1717835450980,-3666.797236,0.00028702,2]
[328818780,1717835450989,-234.443871,0.00028702,2]
[328818781,1717835450999,-150.662243,0.00028702,2]
[328818782,1717835451008,-4076.256233,0.00028702,2]
[328818783,1717835451017,-5151.626452,0.00028702,2]
[328818784,1717835451026,-235.610829,0.00028702,2]
[328818785,1717835451036,-14570.595756,0.00028702,2]
[328818786,1717835451046,-9222.46237151,0.00028702,2]
[328818787,1717835451710,-194.90482178,0.00017259,2]
[328818788,1717835451720,-153.62073742,0.00020497,2]
[328818789,1717835457887,-287.37926258,0.00020497,2]
[328818790,1717835457897,-2226.80092708,0.00023471,2]
[328818791,1717835457908,-151.0,0.00027,7]
[328818792,1717835457917,-4285.51981034,0.00028702,2]
[328818793,1717835458719,1082.94000005,0.00014,2]
[328818794,1717835458798,409.27952397,0.000139,2]
[328818818,1717835498832,2940.1145,0.00013981,2]
[328818819,1717835509555,159.02356236,0.000139,2]
[328818820,1717835514225,578.18183338,0.000139,2]
[328818821,1717835520520,536426.46534842,0.000139,2]
[328818822,1717835554062,185.99482265,0.00014,2]
[328818823,1717835564282,218.26385671,0.00013901,2]
[328818824,1717835576147,664.0,0.00014,2]
[328818825,1717835583122,150.0,0.00014,2]
[328818827,1717835624001,4766731.41588856,0.00014,2]
[328818828,1717835656310,1337.33567298,0.00014,2]
[328818829,1717835746846,5800.0,0.00013537,2]
[328818830,1717835762693,150.0,0.00014,2]
[328818831,1717835763532,150.0,0.00014,2]
[328818832,1717835769683,5800.0,0.00013529,2]
[328818833,1717835783894,1210.56699968,0.00014,2]
[328818834,1717835792451,5800.0,0.0001352,2]
[328818835,1717835816099,5800.0,0.00013512,2]
[328818836,1717835839978,5800.0,0.00013503,2]
[328818838,1717835862738,5800.0,0.00013495,2]
[328818839,1717835866171,1337.33567298,0.00014,2]
[328818840,1717835867525,218.26385671,0.00013901,2]
[328818841,1717835872593,185.99482265,0.00014,2]
[328818842,1717835886041,5800.0,0.00013486,2]
[328818843,1717835902077,4759.80968222,0.00014,2]
[328818844,1717835942697,150.0,0.00014,2]
[328818845,1717835996420,1337.33567298,0.00014,2]
[328818846,1717836065196,-500.0,0.00014001,2]
[328818847,1717836065220,-500.0,0.00014001,2]
[328818848,1717836065246,-500.0,0.00014001,2]
[328818849,1717836065274,-500.0,0.00014001,2]
[328818850,1717836065299,-500.0,0.00014001,2]
[328818851,1717836065321,-500.0,0.00014001,2]
[328818852,1717836065345,-500.0,0.00014001,2]
[328818853,1717836065369,-500.0,0.00014001,2]
[328818854,1717836065391,-82.0,0.00014001,2]
[328818855,1717836122509,150.0,0.00014,2]
[328818856,1717836122629,150.0,0.00014,2]
[328818857,1717836122804,150.0,0.00014,2]
[328818858,1717836334396,-1042.51244556,0.00014001,2]
[328818859,1717836334426,-163.95,0.00014317,2]
[328818860,1717836334454,-3609.783,0.00014819,2]
[328818861,1717836334483,-263.13767157,0.000149,2]
[328818862,1717836334513,-2500.0,0.000149,2]
[328818863,1717836334540,-165.17737501,0.0001499,2]
[328818864,1717836334570,-151.96,0.0001499,2]
[328818865,1717836334598,-150.0,0.00014997,2]
[328818866,1717836334626,-6608.12190322,0.00014998,2]
[328818867,1717836334652,-155.0,0.00014999,2]
[328818868,1717836334680,-4508.88059884,0.00014999,2]
[328818869,1717836334707,-1632.98254459,0.00014999,2]
[328818870,1717836334732,-1046.53950054,0.00015,2]
[328818871,1717836334760,-78001.95496067,0.00015,2]
[328818872,1717836357602,1042.51244556,0.00014,2]
[328818873,1717836371601,1042.51244556,0.00014,2]
[328818874,1717836393088,-321.22736079,0.000149,2]
[328818875,1717836393112,-941.67693938,0.00014998,2]
[328818876,1717836393134,-1248.31846585,0.00014999,2]
[328818877,1717836393157,-664.35980421,0.00014999,2]
[328818878,1717836393744,1042.51244556,0.00014,2]
[328818879,1717836397340,-3895.07094454,0.00014999,2]
[328818880,1717836397370,-155.0,0.00014999,2]
[328818881,1717836397398,-45949.92905546,0.00015,2]
[328818882,1717836415612,437.0563501,0.00014,2]
[328818883,1717836438141,-1399.59619258,0.000149,2]
[328818884,1717836438164,-217.36110672,0.00014998,2]
[328818885,1717836438190,-1000.0,0.00014999,2]
[328818886,1717836438215,-219054.14269759,0.00015,2]
[328818887,1717836442091,-6675.85053077,0.00015,2]
[328818888,1717836447124,-163190.47594695,0.00015,2]
[328818889,1717836449101,-7968.23515777,0.00015,2]
[328818890,1717836451083,-69938.72557992,0.00015,2]
[328818891,1717836453088,-24750.79472515,0.00015,2]
[328818892,1717836453148,-3713.12045508,0.00015,2]
[328818907,1717836631742,-804.97,0.0001471,2]
[328818908,1717836631752,-1000.0,0.00014899,2]
[328818909,1717836631762,-321.22736079,0.000149,2]
[328818910,1717836631772,-173.34889557,0.000149,2]
[328818911,1717836631782,-1224.64666856,0.000149,2]
[328818912,1717836631792,-38060.6695512,0.00014989,2]
[328818913,1717836631801,-14545.0748801,0.00014989,2]
[328818914,1717836631810,-151.72,0.0001499,2]
[328818915,1717836631820,-151.72,0.0001499,2]
[328818916,1717836631829,-151.72,0.0001499,2]
[328818917,1717836631838,-151.72,0.0001499,2]
[328818918,1717836631847,-1000.0,0.00014999,2]
[328818919,1717836631857,-217.1710123,0.00014999,2]
[328818920,1717836631866,-150.0,0.00014999,2]
[328818921,1717836631875,-150.0,0.00014999,2]
[328818922,1717836631884,-59430.12919946,0.00015,2]
[328818923,1717836631900,-1346.78709982,0.00015,2]
[328818924,1717836631913,-337463.96562374,0.00015,2]
[328818925,1717836631926,-843.6035141,0.00015,2]
[328818926,1717836631960,-397.08384421,0.00015,2]
[328818927,1717836631978,-444.06,0.00015,2]
[328818928,1717836631990,-318.64482262,0.00015,2]
[328818929,1717836632021,-945.02971513,0.00015,2]
[328818930,1717836632223,-374.10436896,0.00015,2]
[328818931,1717836632256,-8833.8461044,0.00015,2]
[328818932,1717836632270,-224718.38807055,0.00015,2]
[328818933,1717836632300,-58402.6419067,0.00015,2]
[328818936,1717836632325,-41479.03288506,0.00015,2]
[328818956,1717836637713,-294218.5292993,0.00014989,2]
[328818957,1717836637722,-68570.55597627,0.00015,2]
[328818958,1717836637749,-247071.56932639,0.00015,2]
[328818959,1717836637762,-84558.88021104,0.00015,2]
[328818960,1717836637772,-1046.53950054,0.00015,2]
[328818961,1717836637782,-164.46428183,0.000151,2]
[328818962,1717836637792,-2271.92464954,0.000153,2]
[328818963,1717836637802,-23413.84,0.00015804,2]
[328818964,1717836637811,-335.15,0.00015804,2]
[328818965,1717836637821,-210.0,0.00016499,2]
[328818966,1717836637830,-210.0,0.00016499,2]
[328818967,1717836637840,-9999.99,0.00016499,2]
[328818968,1717836637850,-299.99,0.00016499,4]
[328818969,1717836637859,-3104.9,0.00016499,2]
[328818970,1717836637869,-999.99,0.00016499,2]
[328818971,1717836637881,-1805.74855387,0.000165,2]
[328818972,1717836637890,-2271.92464954,0.00016627,2]
[328818973,1717836637900,-179.63,0.00016712,2]
[328818974,1717836637910,-151.72,0.00016912,2]
[328818975,1717836638058,-1141.3,0.00016922,2]
[328818976,1717836638068,-442.4,0.00016922,2]
[328818977,1717836638078,-5766.77,0.00016922,2]
[328818978,1717836638087,-27485.92,0.00016922,2]
[328818979,1717836638097,-250.0,0.00016938,2]
[328818980,1717836638107,-804.97,0.00016974,2]
[328818981,1717836638116,-1224.6466685,0.00017043,2]
[328818982,1717836638126,-10620.01,0.00017083,2]
[328818983,1717836638135,-838.98,0.00017099,2]
[328818984,1717836638146,-338.57,0.00017148,2]
[328818985,1717836638155,-3676.15775166,0.00017243,2]
[328818988,1717836638205,-6251.18924376,0.00017243,2]
[328818989,1717836638308,-0.8052123,0.00017243,2]
[328818990,1717836638341,-188.49779228,0.00017243,2]
[328818991,1717836638351,-625.28915843,0.00017258,2]
[328818992,1717836638360,-1260.44934067,0.00017258,2]
[328818993,1717836638369,-234.92335311,0.00017258,2]
[328818994,1717836638379,-273.71215412,0.00017258,2]
[328819007,1717836640556,-414.34513903,0.00017258,2]
[328819008,1717836640567,-499.99,0.00017258,2]
[328819009,1717836640578,-862.13999275,0.00017259,2]
[328819010,1717836640589,-181.46353453,0.00017259,2]
[328819011,1717836640599,-23890.0,0.00017283,2]
[328819012,1717836640610,-150.0,0.00017283,2]
[328819013,1717836640620,-1000.0,0.00017285,2]
[328819014,1717836640631,-250.0,0.00017302,2]
[328819015,1717836640642,-188.12,0.00017323,2]
[328819016,1717836640652,-2751.0,0.00017376,2]
[328819017,1717836640664,-6029.64,0.00017485,2]
[328819018,1717836640674,-194.57,0.00017516,2]
[328819019,1717836640684,-7592.43,0.00017516,2]
[328819020,1717836640694,-200.0,0.00017722,2]
[328819021,1717836640705,-2702.11,0.00017843,2]
[328819022,1717836640716,-2271.92464954,0.00017955,2]
[328819023,1717836640726,-224.76407532,0.00018,2]
[328819024,1717836640737,-649.53295488,0.00018,2]
[328819025,1717836640748,-293.0,0.00018149,2]
[328819026,1717836640758,-293.0,0.00018149,2]
[328819027,1717836640768,-1096.99,0.00018238,2]
[328819028,1717836640779,-1096.99,0.00018243,2]
[328819029,1717836640789,-1096.99,0.00018247,2]
[328819030,1717836640799,-1096.99,0.00018252,2]
[328819031,1717836640809,-1096.99,0.00018257,2]
[328819032,1717836640819,-1096.99,0.00018262,2]
[328819033,1717836640829,-1096.99,0.00018267,2]
[328819034,1717836640839,-1096.99,0.00018271,2]
[328819035,1717836640849,-151.72,0.00018276,2]
[328819036,1717836640859,-1096.99,0.00018276,2]
[328819037,1717836640869,-1096.99,0.00018281,2]
[328819038,1717836640879,-1096.99,0.00018286,2]
[328819039,1717836640888,-1096.99,0.0001829,2]
[328819040,1717836640898,-1096.99,0.00018295,2]
[328819041,1717836640908,-1096.99,0.000183,2]
[328819042,1717836640919,-1096.99,0.00018305,2]
[328819043,1717836640928,-1096.99,0.0001831,2]
[328819044,1717836640942,-1096.99,0.00018314,2]
[328819045,1717836640952,-1096.99,0.00018319,2]
[328819046,1717836640962,-1096.99,0.00018324,2]
[328819047,1717836640972,-1096.99,0.00018329,2]
[328819048,1717836640982,-500.0,0.000185,2]
[328819049,1717836640992,-300.0,0.00018658,2]
[328819050,1717836641003,-412.87618326,0.00019,2]
[328819051,1717836641012,-363.54016623,0.00019178,2]
[328819052,1717836641022,-233.20829616,0.00019178,2]
[328819053,1717836641032,-364.50042257,0.00019178,2]
[328819054,1717836641042,-500.0,0.00019178,2]
[328819055,1717836641052,-342.64206726,0.00019178,2]
[328819056,1717836641063,-3608.0,0.00019178,2]
[328819057,1717836641073,-1224.6466685,0.00019186,2]
[328819058,1717836641083,-3892.44824461,0.000192,2]
[328819059,1717836641094,-172.27,0.00019213,2]
[328819060,1717836641105,-150.0,0.00019234,2]
[328819061,1717836641116,-804.97,0.00019237,2]
[328819062,1717836641126,-2271.92464954,0.00019282,2]
[328819063,1717836641136,-1000.0,0.00019446,2]
[328819064,1717836641146,-166.71,0.00019499,2]
[328819065,1717836641156,-172.04,0.00019811,2]
[328819066,1717836641168,-8212.11997424,0.00019822,2]
[328819067,1717836641218,-1737.2246,0.00019822,2]
[328819069,1717836643795,-342.45196353,0.0001723,2]
[328819070,1717836643808,-471.18803647,0.0001723,2]
[328819071,1717836643818,-670.66542576,0.00019822,2]
[328819072,1717836643828,-172.04,0.000199,2]
[328819073,1717836643838,-549.09326146,0.0002,2]
[328819074,1717836643848,-1267.41790401,0.0002,2]
[328819075,1717836643857,-6260.95773304,0.0002,2]
[328819076,1717836643867,-864.62751791,0.0002,2]
[328819077,1717836643877,-300.0,0.00020027,2]
[328819078,1717836643886,-226.64653432,0.000201,2]
[328819079,1717836643897,-155093.0,0.000204,2]
[328819080,1717836643907,-151.72,0.0002049,2]
[328819081,1717836643917,-2271.92464954,0.00020609,2]
[328819082,1717836643927,-11736.0,0.000208,3]
[328819083,1717836643936,-574.0,0.00021096,2]
[328819084,1717836643947,-151.72,0.00021168,2]
[328819085,1717836643958,-34034.0,0.00021178,2]
[328819086,1717836643968,-33132.0,0.00021178,2]
[328819087,1717836643978,-500.0,0.0002118,2]
[328819088,1717836643987,-11736.0,0.000212,5]
[328819089,1717836643998,-1224.6466685,0.00021329,2]
[328819090,1717836644007,-804.97,0.00021501,2]
[328819091,1717836644017,-1000.0,0.00021606,2]
[328819092,1717836644027,-800.0,0.00021836,2]
[328819093,1717836644037,-1000.0,0.0002185,2]
[328819094,1717836644047,-150.0,0.00021867,2]
[328819095,1717836644057,-978.0,0.00021867,2]
[328819096,1717836644067,-441.0,0.00021867,2]
[328819097,1717836644077,-615.0,0.00021867,2]
[328819098,1717836644087,-1268.0,0.00021867,2]
[328819099,1717836644096,-1650.0,0.00021867,2]
[328819100,1717836644106,-1830.0,0.00021867,2]
[328819101,1717836644116,-808.0,0.00021867,2]
[328819102,1717836644126,-165.0,0.00021867,2]
[328819103,1717836644137,-2405.0,0.00021867,2]
[328819104,1717836644147,-150.0,0.00021867,2]
[328819105,1717836644158,-467.508,0.00021867,2]
[328819106,1717836644171,-1304.0,0.00021867,2]
[328819107,1717836644180,-150.0,0.00021867,2]
[328819108,1717836644189,-3174.0,0.00021867,2]
[328819109,1717836644199,-546.0,0.00021867,2]
[328819110,1717836644209,-1977.0,0.00021867,2]
[328819111,1717836644219,-5781.0,0.00021867,2]
[328819112,1717836644228,-5153.0,0.00021867,2]
[328819113,1717836644238,-318.371,0.00021867,2]
[328819114,1717836644248,-290.0,0.00021867,2]
[328819115,1717836644257,-38043.0,0.00021867,2]
[328819116,1717836644267,-388.42,0.00021918,2]
[328819117,1717836644277,-188.88,0.00021918,2]
[328819121,1717836644432,-250.0,0.00021918,2]
[328819122,1717836644448,-166.71,0.00021936,2]
[328819123,1717836644469,-2271.92464954,0.00021936,2]
[328819124,1717836644483,-790.3667753,0.00022,2]